bitfinex/quotes_BTCUSD_20250515
["timestamp","ask_amount","ask_price","bid_price","bid_amount"]
[1747320400098,0.56227841,101450.0,101440.0,0.95286376]
[1747320400470,0.56227841,101450.0,101440.0,1.16974023]
[1747320400675,0.57213509,101450.0,101440.0,1.16974023]
[1747320400973,0.38684974,101450.0,101440.0,1.71452116]
[1747320401176,0.01185619,101450.0,101440.0,1.72906201]
[1747320401389,0.02171248,101450.0,101440.0,1.82637141]
[1747320401584,0.38444663,101460.0,101450.0,0.28971148]
[1747320401791,0.35424,101460.0,101450.0,0.76631835]
[1747320401987,0.59078484,101460.0,101450.0,0.22153926]
[1747320402189,0.59078484,101460.0,101450.0,0.74660528]
[1747320402410,0.57107391,101460.0,101450.0,0.88251686]
[1747320402617,0.57107391,101460.0,101450.0,0.89237383]
[1747320402828,0.36409561,101460.0,101450.0,0.92194368]
[1747320403024,0.57107294,101460.0,101450.0,0.92662814]
[1747320403230,0.38380683,101460.0,101450.0,0.93648472]
[1747320403447,0.58092952,101460.0,101450.0,0.90691478]
[1747320403736,0.58092952,101460.0,101450.0,0.92662833]
[1747320403862,0.58092952,101460.0,101450.0,0.90691478]
[1747320404062,0.58192952,101460.0,101450.0,0.91877175]
[1747320404279,0.57307391,101460.0,101450.0,0.91091468]
[1747320404483,0.58292884,101460.0,101450.0,0.18870722]
[1747320404682,0.58292884,101460.0,101450.0,0.39767653]
[1747320404909,0.58292884,101460.0,101450.0,0.93062814]
[1747320405326,0.38580645,101460.0,101450.0,0.93062775]
[1747320405582,0.002,101460.0,101450.0,0.93062775]
[1747320405797,0.01185532,101460.0,101450.0,0.93062775]
[1747320406007,0.21883352,101460.0,101450.0,0.067]
[1747320406215,0.002,101460.0,101450.0,0.82543309]
[1747320406438,0.22868846,101460.0,101450.0,0.82346196]
[1747320407078,0.23854446,101460.0,101450.0,0.81360528]
[1747320407283,0.23854524,101460.0,101450.0,0.61646394]
[1747320407492,0.21883411,101460.0,101450.0,0.71377334]
[1747320407701,0.23854514,101460.0,101450.0,0.93062833]
[1747320407915,0.23854514,101460.0,101450.0,1.32021478]
[1747320408121,0.23854514,101460.0,101450.0,1.33007175]
[1747320408325,0.23783614,101460.0,101450.0,1.33007175]
[1747320408542,0.21812501,101460.0,101450.0,0.5736094]
[1747320408759,0.21812501,101460.0,101450.0,0.4763]
[1747320411035,0.21812501,101460.0,101450.0,1.00136602]
[1747320411280,0.20826911,101460.0,101450.0,1.00136602]
[1747320411493,0.20826911,101460.0,101450.0,0.4763]
[1747320411699,0.72349426,101460.0,101450.0,0.004]
[1747320411926,0.64557851,101460.0,101450.0,0.004]
[1747320412142,0.72349426,101460.0,101450.0,0.004]
[1747320412565,0.64557851,101460.0,101450.0,0.004]
[1747320412830,0.64557851,101460.0,101450.0,0.0654]
[1747320414844,0.30557851,101460.0,101450.0,0.0349]
[1747320415711,0.30557851,101460.0,101450.0,0.0674]
[1747320416546,0.30557851,101460.0,101450.0,0.45604632]
[1747320416759,0.30557851,101460.0,101450.0,0.0674]
[1747320417192,0.65293851,101460.0,101450.0,0.46295338]
[1747320417406,0.36836164,101460.0,101450.0,0.68966515]
[1747320417638,0.57533994,101460.0,101450.0,0.68966535]
[1747320417854,0.57533994,101460.0,101450.0,0.77711807]
[1747320418077,0.55562891,101460.0,101450.0,0.76726129]
[1747320418286,0.54577301,101460.0,101450.0,0.07430706]
[1747320418922,0.54577301,101460.0,101450.0,0.66995189]
[1747320419143,0.36836241,101460.0,101450.0,0.69952193]
[1747320419357,0.001291,101460.0,101450.0,1.08816825]
[1747320419572,0.21681208,101470.0,101460.0,0.28123372]
[1747320419573,0.21681196,101470.0,101460.0,0.28123372]
[1747320419781,0.20695752,101470.0,101460.0,0.76718963]
[1747320419999,0.20695752,101470.0,101460.0,0.77409669]
[1747320420262,0.01970899,101470.0,101460.0,0.79380772]
[1747320420495,0.02956353,101470.0,101460.0,0.79380772]
[1747320420715,0.57200494,101480.0,101470.0,0.29126708]
[1747320420937,0.65946057,101480.0,101470.0,0.5056294]
[1747320421151,0.65946057,101480.0,101470.0,0.90118278]
[1747320421828,0.65946057,101480.0,101470.0,0.51253646]
[1747320422033,0.65946057,101480.0,101470.0,0.41522706]
[1747320422674,0.65946057,101480.0,101470.0,0.80387338]
[1747320423087,0.66046057,101480.0,101470.0,0.41822706]
[1747320423302,0.66146057,101480.0,101470.0,0.80887338]
[1747320423515,0.56415059,101480.0,101470.0,1.03553998]
[1747320423731,0.01185338,101480.0,101470.0,1.10347201]
[1747320423941,0.03156062,101480.0,101470.0,1.10347201]
[1747320424158,0.002,101480.0,101470.0,1.52923201]
[1747320424572,0.002,101480.0,101470.0,1.54398144]
[1747320425442,0.001,101480.0,101470.0,1.54198144]
[1747320425651,0.002,101480.0,101470.0,1.54498144]
[1747320425862,0.01185328,101480.0,101470.0,1.54498144]
[1747320426093,0.22864485,101480.0,101470.0,1.14654623]
[1747320426303,0.22864485,101480.0,101470.0,1.47711535]
[1747320426542,0.02070705,101480.0,101470.0,1.49382433]
[1747320426742,0.02070695,101480.0,101470.0,1.49382433]
[1747320426983,0.04141458,101480.0,101470.0,1.49782433]
[1747320427166,0.04141448,101480.0,101470.0,1.59513373]
[1747320427308,0.03156062,101480.0,101470.0,1.59513373]
[1747320427718,0.24835179,101480.0,101470.0,1.18677843]
[1747320427933,0.22864494,101480.0,101470.0,0.7359742]
[1747320428136,0.22864494,101480.0,101470.0,1.46336573]
[1747320428385,0.02170724,101480.0,101470.0,1.4975154]
[1747320428586,0.002,101480.0,101470.0,1.4975154]
[1747320429432,0.002,101480.0,101470.0,1.10886908]
[1747320429656,0.002,101480.0,101470.0,1.5948248]
[1747320430232,0.002,101480.0,101470.0,1.6921342]
[1747320430461,0.36875188,101510.0,101500.0,0.29039979]
[1747320430664,0.3392,101510.0,101500.0,1.03253774]
[1747320430830,0.3392,101510.0,101500.0,1.12984714]
[1747320431029,0.3392,101510.0,101500.0,1.1367363]
[1747320431663,0.33934503,101510.0,101500.0,1.1367363]
[1747320431867,0.35904606,101510.0,101500.0,1.1367363]
[1747320432099,0.3491954,101510.0,101500.0,1.1367363]
[1747320432301,0.36889672,101510.0,101500.0,1.1377363]
[1747320432510,0.5659227,101510.0,101500.0,0.51263856]
[1747320432724,0.5659227,101510.0,101500.0,0.41432916]
[1747320432976,0.55607194,101510.0,101500.0,0.41432916]
[1747320433178,0.55607194,101510.0,101500.0,0.79808632]
[1747320433403,0.72144624,101510.0,101500.0,0.002]
[1747320433613,0.72144624,101510.0,101500.0,0.003]
[1747320434046,0.64353049,101510.0,101500.0,0.002]
[1747320434231,0.64353049,101510.0,101500.0,0.003]
[1747320434441,0.64353049,101510.0,101500.0,0.39164632]
[1747320434667,0.64353049,101510.0,101500.0,0.42781987]
[1747320434870,0.64353049,101510.0,101500.0,0.07007355]
[1747320435310,0.64353049,101510.0,101500.0,0.0339]
[1747320436431,0.64353049,101510.0,101500.0,0.003]
[1747320437362,0.34919588,101510.0,101500.0,0.80704935]
[1747320437590,0.00014503,101510.0,101500.0,0.82675289]
[1747320437809,0.01984596,101510.0,101500.0,0.82675289]
[1747320438030,0.01984596,101510.0,101500.0,0.92406229]
[1747320438276,0.01984586,101510.0,101500.0,0.92406229]
[1747320438495,0.00014503,101510.0,101500.0,0.92406229]
[1747320438721,0.01984606,101510.0,101500.0,0.92406229]
[1747320438940,0.02969691,101510.0,101500.0,0.92406229]
[1747320439197,0.22672183,101510.0,101500.0,0.91421076]
[1747320439413,0.2267226,101510.0,101500.0,0.39011007]
[1747320439620,0.21687194,101510.0,101500.0,0.0662]
[1747320439835,0.21687194,101510.0,101500.0,0.27309644]
[1747320440064,0.21687194,101510.0,101500.0,0.0662]
[1747320440279,0.21687194,101510.0,101500.0,0.28294865]
[1747320440564,0.21687194,101510.0,101500.0,0.29280057]
[1747320440778,0.20702041,101510.0,101500.0,0.93391421]
[1747320441003,0.00999549,101510.0,101500.0,2.03391421]
[1747320441209,0.01984625,101510.0,101500.0,2.03391421]
[1747320441411,0.00999549,101510.0,101500.0,2.03391421]
[1747320441619,0.01984615,101510.0,101500.0,2.03391421]
[1747320442436,0.00014503,101510.0,101500.0,2.03391421]
[1747320442621,0.00999559,101510.0,101500.0,1.50981332]
[1747320442858,0.00014503,101510.0,101500.0,2.14576446]
[1747320443695,0.00014503,101510.0,101500.0,1.63166357]
[1747320443902,0.00014503,101510.0,101500.0,2.16263799]
[1747320445795,0.20679482,101550.0,101530.0,0.21668325]
[1747320445996,0.22651121,101540.0,101530.0,0.82842394]
[1747320446202,0.22651121,101540.0,101530.0,1.19337107]
[1747320446555,0.22651121,101540.0,101530.0,1.20025107]
[1747320446964,0.22651121,101540.0,101530.0,1.19637107]
[1747320447403,0.22651121,101540.0,101530.0,1.17667324]
[1747320447605,0.21666327,101540.0,101530.0,0.66242155]
[1747320447808,0.20681504,101540.0,101530.0,0.38503694]
[1747320448354,0.38204019,101540.0,101530.0,0.3384]
[1747320448695,0.38204019,101540.0,101530.0,0.3404]
[1747320448958,0.72204019,101540.0,101530.0,0.005]
[1747320449109,0.72204019,101540.0,101530.0,0.007]
[1747320449312,0.75204019,101540.0,101530.0,0.007]
[1747320449523,0.78324019,101540.0,101530.0,0.007]
[1747320450329,0.78324019,101540.0,101530.0,0.002]
[1747320450601,0.54683522,101530.0,101520.0,0.33536]
[1747320450826,0.64414462,101530.0,101520.0,0.33536]
[1747320451158,0.98247363,101530.0,101520.0,0.95619689]
[1747320451357,0.54516423,101530.0,101520.0,0.95619689]
[1747320451657,0.54516423,101530.0,101520.0,0.432096]
[1747320451871,0.21768423,101530.0,101520.0,0.432096]
[1747320451996,0.54580423,101530.0,101520.0,0.432096]
[1747320452199,0.21768423,101530.0,101520.0,0.432096]
[1747320452438,0.54508423,101530.0,101520.0,0.433096]
[1747320452914,0.54508423,101530.0,101520.0,0.63995168]
[1747320453118,0.001,101530.0,101520.0,0.66950114]
[1747320453323,0.001,101530.0,101520.0,1.20049249]
[1747320453507,0.001,101530.0,101520.0,1.83644363]
[1747320454350,0.001,101530.0,101520.0,2.17644363]
[1747320454565,0.55270892,101560.0,101550.0,0.27994174]
[1747320454772,0.55270892,101560.0,101550.0,1.20968212]
[1747320454773,0.34593123,101560.0,101550.0,1.20968212]
[1747320454992,0.34593123,101560.0,101550.0,1.19983544]
[1747320454993,0.35577723,101560.0,101550.0,1.19983544]
[1747320455210,0.56255117,101560.0,101550.0,1.2067259]
[1747320455422,0.35577705,101560.0,101550.0,1.19687893]
[1747320455628,0.56255174,101560.0,101550.0,1.18703186]
[1747320455861,0.55285107,101560.0,101550.0,1.17718479]
[1747320456071,0.54300516,101560.0,101550.0,0.44628923]
[1747320456491,0.53800516,101560.0,101550.0,0.44628923]
[1747320456703,0.54000516,101560.0,101550.0,0.44628923]
[1747320457125,0.54300516,101560.0,101550.0,0.44628923]
[1747320457737,0.54300516,101560.0,101550.0,0.37609877]
[1747320458150,0.54300516,101560.0,101550.0,0.32644]
[1747320460586,0.54300516,101560.0,101540.0,0.48992]
[1747320460587,0.20679448,101550.0,101540.0,0.48992]
[1747320460810,0.30410388,101550.0,101540.0,0.3264]
[1747320461024,0.21668404,101530.0,101520.0,0.424336]
[1747320461241,0.53972404,101530.0,101520.0,0.424336]
[1747320461462,0.53972404,101530.0,101520.0,0.43122051]
[1747320462097,0.53972404,101530.0,101520.0,0.359936]
[1747320462543,0.54072404,101530.0,101520.0,0.3304]
[1747320462761,0.54072404,101530.0,101520.0,0.3324]
[1747320463635,0.19798611,101530.0,101520.0,0.3634]
[1747320463863,0.19798611,101530.0,101520.0,1.12675648]
[1747320463864,0.55894146,101530.0,101520.0,1.12675648]
[1747320464080,0.54909352,101530.0,101520.0,0.92678721]
[1747320464285,0.53916461,101530.0,101520.0,0.49999572]
[1747320464528,0.53916461,101530.0,101520.0,0.33928632]
[1747320464729,0.53916461,101530.0,101520.0,0.3324]
[1747320465332,0.53916461,101530.0,101520.0,0.3625]
[1747320465782,0.21768461,101530.0,101520.0,0.3324]
[1747320465962,0.97659401,101530.0,101520.0,0.006]
[1747320466164,1.00749401,101530.0,101520.0,0.006]
[1747320466436,0.97659401,101530.0,101520.0,0.006]
[1747320466657,0.65499401,101530.0,101520.0,0.006]
[1747320466859,0.97607401,101530.0,101520.0,0.006]
[1747320467072,0.97607401,101530.0,101520.0,0.004]
[1747320467493,0.97707401,101530.0,101520.0,0.004]
[1747320467714,0.23642814,101510.0,101500.0,1.14030052]
[1747320467930,0.23642814,101510.0,101500.0,1.24746165]
[1747320468134,0.23642814,101510.0,101500.0,1.24450202]
[1747320468358,0.2265769,101510.0,101500.0,1.2346502]
[1747320468572,0.23642804,101510.0,101500.0,0.71054943]
[1747320468778,0.21672701,101510.0,101500.0,0.49380152]
[1747320468980,0.21672701,101510.0,101500.0,0.49627926]
[1747320469183,0.21772701,101510.0,101500.0,0.52014175]
[1747320469388,0.21772701,101510.0,101500.0,0.51028954]
[1747320469818,0.20787606,101510.0,101500.0,0.51028954]
[1747320470025,0.20787606,101510.0,101500.0,0.50027926]
[1747320470455,0.20787606,101510.0,101500.0,0.43707926]
[1747320470654,0.20787606,101510.0,101500.0,0.33976986]
[1747320470861,0.20787606,101510.0,101500.0,0.34287774]
[1747320471152,0.20787606,101510.0,101500.0,0.37477774]
[1747320471775,0.20787606,101510.0,101500.0,0.61346819]
[1747320471984,0.22757815,101510.0,101500.0,0.08007774]
[1747320472222,0.2177273,101510.0,101500.0,0.48861255]
[1747320473719,0.5365673,101510.0,101500.0,0.48861255]
[1747320474381,0.2177273,101510.0,101500.0,0.48861255]
[1747320474804,0.5356473,101510.0,101500.0,0.48861255]
[1747320475450,0.5356473,101510.0,101500.0,0.49846476]
[1747320475660,0.5356473,101510.0,101500.0,0.48861255]
[1747320475879,0.5356473,101510.0,101500.0,0.41636995]
[1747320476116,0.52579616,101510.0,101500.0,0.40651774]
[1747320476756,0.52579616,101510.0,101500.0,0.61341428]
[1747320476962,0.01085095,101510.0,101500.0,1.14761319]
[1747320477177,0.03055198,101510.0,101500.0,1.17716865]
[1747320477432,0.23742814,101510.0,101500.0,1.28136556]
[1747320477649,0.22757777,101510.0,101500.0,1.13556602]
[1747320477853,0.22757777,101510.0,101500.0,1.14541794]
[1747320478075,0.22757777,101510.0,101500.0,1.14838197]
[1747320478294,0.21772653,101510.0,101500.0,1.13853024]
[1747320478503,0.23742891,101510.0,101500.0,1.13853024]
[1747320478957,0.23742891,101510.0,101500.0,1.14541664]
[1747320479167,0.22757767,101510.0,101500.0,1.15526827]
[1747320479396,0.03055266,101510.0,101500.0,1.15526769]
[1747320479626,0.55434882,101510.0,101500.0,1.14541626]
[1747320480255,0.55434882,101510.0,101500.0,1.15526789]
[1747320480457,0.32777037,101510.0,101500.0,1.1552674]
[1747320480669,0.35732283,101510.0,101500.0,0.76711452]
[1747320480891,0.36717397,101510.0,101500.0,1.1552674]
[1747320481096,0.34747178,101510.0,101500.0,1.1552674]
[1747320481535,0.35732292,101510.0,101500.0,1.1552674]
[1747320481749,0.34747178,101510.0,101500.0,1.1552674]
[1747320481982,0.35732283,101510.0,101500.0,1.1552674]
[1747320482192,0.36717397,101510.0,101500.0,1.1552674]
[1747320482696,0.55434852,101510.0,101500.0,1.14541587]
[1747320482830,0.54449835,101510.0,101500.0,1.1257129]
[1747320483041,0.54449835,101510.0,101500.0,1.12867832]
[1747320483261,0.54449835,101510.0,101500.0,1.13853005]
[1747320483470,0.54449835,101510.0,101500.0,1.14838168]
[1747320483717,0.54449835,101510.0,101500.0,1.148381]
[1747320483718,0.33762181,101510.0,101500.0,1.148381]
[1747320483921,0.55434911,101510.0,101500.0,1.13852947]
[1747320484131,0.34747217,101510.0,101500.0,1.15526701]
[1747320484339,0.32777046,101510.0,101500.0,1.15526701]
[1747320484545,0.34747197,101510.0,101500.0,1.15526701]
[1747320484767,0.001,101510.0,101500.0,1.15526701]
[1747320484976,0.30684367,101560.0,101500.0,1.94601151]
[1747320485177,0.62808981,101560.0,101550.0,0.38815288]
[1747320485384,0.62808981,101560.0,101550.0,1.18207378]
[1747320485385,0.5405467,101560.0,101550.0,1.18207378]
[1747320485589,0.32392581,101560.0,101550.0,1.05021552]
[1747320485818,0.54054525,101560.0,101550.0,1.0600625]
[1747320486023,0.34361733,101560.0,101550.0,1.06990947]
[1747320486240,0.34361733,101560.0,101550.0,1.08664216]
[1747320486241,0.35446353,101560.0,101550.0,1.08664216]
[1747320486433,0.34476228,101560.0,101550.0,1.06694832]
[1747320486648,0.31422495,101560.0,101550.0,1.076795]
[1747320486852,0.343762,101560.0,101550.0,1.076795]
[1747320487055,0.33391609,101560.0,101550.0,1.076795]
[1747320487270,0.32507047,101560.0,101550.0,1.076795]
[1747320487471,0.00114495,101560.0,101550.0,1.22201523]
[1747320487675,0.00014495,101560.0,101550.0,1.22201523]
[1747320487883,0.00214495,101560.0,101550.0,1.22201523]
[1747320488089,0.23845631,101560.0,101550.0,0.67890972]
[1747320488308,0.21676459,101560.0,101550.0,0.68875669]
[1747320488515,0.22661069,101560.0,101550.0,0.68975669]
[1747320488723,0.23645698,101560.0,101550.0,1.20332167]
[1747320488925,0.23645698,101560.0,101550.0,0.6897566]
[1747320489142,0.21676526,101560.0,101550.0,0.00788582]
[1747320489350,0.52872526,101560.0,101550.0,0.00788582]
[1747320489561,0.52872526,101560.0,101550.0,0.31888]
[1747320489766,0.32195076,101560.0,101550.0,0.85213912]
[1747320489967,0.00014495,101560.0,101550.0,1.13168008]
[1747320490141,0.01983638,101560.0,101550.0,1.22898948]
[1747320490346,0.00014495,101560.0,101550.0,1.23587161]
[1747320490564,0.00999066,101560.0,101550.0,1.23587161]
[1747320490731,0.00014495,101560.0,101550.0,0.42307153]
[1747320490941,0.2167644,101560.0,101550.0,0.6615661]
[1747320491137,0.00014495,101560.0,101550.0,1.25492615]
[1747320491573,0.00999057,101560.0,101550.0,1.25492615]
[1747320491743,0.2266104,101560.0,101550.0,0.10519153]
[1747320491942,0.21676507,101560.0,101550.0,0.42303153]
[1747320492156,0.52672507,101560.0,101550.0,0.42303153]
[1747320492357,0.52672507,101560.0,101550.0,0.62294388]
[1747320492562,0.52672507,101560.0,101550.0,1.20715592]
[1747320492767,0.52672507,101560.0,101550.0,1.21700309]
[1747320492963,0.52672507,101560.0,101550.0,0.88931592]
[1747320493173,0.69210422,101560.0,101550.0,0.001]
[1747320493586,0.51687907,101560.0,101550.0,0.001]
[1747320493829,0.52672498,101560.0,101550.0,0.80572297]
[1747320494039,0.32979657,101560.0,101550.0,1.13336753]
[1747320494239,0.54641649,101560.0,101550.0,1.12352105]
[1747320494447,0.54641649,101560.0,101550.0,1.24052449]
[1747320494651,0.54641649,101560.0,101550.0,1.22083045]
[1747320495114,0.54641649,101560.0,101550.0,1.22083035]
[1747320495314,0.53657087,101560.0,101550.0,1.21098328]
[1747320495537,0.53657087,101560.0,101550.0,0.67772407]
[1747320495743,0.53657087,101560.0,101550.0,1.22083016]
[1747320495923,0.31995047,101560.0,101550.0,1.23067684]
[1747320496120,0.32979628,101560.0,101550.0,1.23067684]
[1747320496379,0.02968228,101560.0,101550.0,1.23067684]
[1747320496769,0.2266102,101560.0,101550.0,0.0983094]
[1747320496979,0.21676507,101560.0,101550.0,0.6475934]
[1747320497199,0.21676507,101560.0,101550.0,0.3854985]
[1747320497200,0.00999066,101560.0,101550.0,0.3854985]
[1747320497392,0.00999066,101560.0,101550.0,1.2385241]
[1747320497603,0.22661049,101560.0,101550.0,0.71511235]
[1747320497812,0.01983647,101560.0,101550.0,0.70526499]
[1747320497955,0.03952848,101560.0,101550.0,1.12441167]
[1747320498160,0.21676439,101560.0,101550.0,1.12441167]
[1747320498366,0.02968247,101560.0,101550.0,1.12441167]
[1747320498579,0.03952857,101560.0,101550.0,1.12441167]
[1747320499211,0.00014495,101560.0,101550.0,1.64782362]
[1747320499594,0.029682,101560.0,101550.0,1.64782362]
[1747320499791,0.0296819,101560.0,101550.0,1.64782362]
[1747320500254,0.00999047,101560.0,101550.0,1.64782362]
[1747320500481,0.00014495,101560.0,101550.0,1.82197894]
[1747320500643,0.00014495,101560.0,101550.0,2.34539089]
[1747320501031,0.00999057,101560.0,101550.0,2.34539089]
[1747320502051,0.00014495,101560.0,101550.0,1.76654114]
[1747320502464,0.00014495,101560.0,101550.0,2.10654114]
[1747320502707,0.00014495,101560.0,101550.0,2.11654114]
[1747320502916,0.32236581,101590.0,101580.0,0.25922134]
[1747320503127,0.00984271,101590.0,101580.0,1.99088717]
[1747320503337,0.23624216,101590.0,101580.0,1.46747532]
[1747320503543,0.21655645,101590.0,101580.0,1.38268748]
[1747320503765,0.21655645,101590.0,101580.0,1.4023759]
[1747320503987,0.009843,101590.0,101580.0,1.47331967]
[1747320504198,0.01968552,101590.0,101580.0,2.09404102]
[1747320504409,0.00984271,101590.0,101580.0,2.09404102]
[1747320505057,0.51879718,101610.0,101600.0,0.21653503]
[1747320505287,0.51879718,101610.0,101590.0,0.80156821]
[1747320505288,0.21653474,101600.0,101590.0,0.80156821]
[1747320505524,0.22637725,101600.0,101590.0,0.25846977]
[1747320505769,0.22637725,101600.0,101590.0,0.27815644]
[1747320505986,0.22637725,101600.0,101590.0,0.26831325]
[1747320506199,0.22637725,101600.0,101590.0,0.38530923]
[1747320506673,0.22637725,101600.0,101590.0,0.39515233]
[1747320506899,0.22637725,101600.0,101590.0,0.38530923]
[1747320507361,0.22637725,101600.0,101590.0,0.37546604]
[1747320507573,0.21653522,101600.0,101590.0,0.36566265]
[1747320507818,0.21653522,101600.0,101590.0,0.37650604]
[1747320508025,0.22637677,101600.0,101590.0,0.39619223]
[1747320508212,0.24606093,101600.0,101590.0,0.39619223]
[1747320508386,0.23621919,101600.0,101590.0,0.38634923]
[1747320508604,0.20667631,101610.0,101600.0,0.19685039]
[1747320508827,0.52583902,101610.0,101600.0,0.73284209]
[1747320509217,0.51599786,101610.0,101600.0,0.51630696]
[1747320509435,0.51599786,101610.0,101600.0,0.71315735]
[1747320509656,0.51599786,101610.0,101600.0,0.50646445]
[1747320509886,0.50615641,101610.0,101600.0,0.50646445]
[1747320510116,0.49831486,101610.0,101600.0,0.50646445]
[1747320510364,0.19883486,101610.0,101600.0,0.50646445]
[1747320510588,0.49707486,101610.0,101600.0,0.50646445]
[1747320510812,0.49707486,101610.0,101600.0,0.71315735]
[1747320511029,0.51675747,101610.0,101600.0,0.72299957]
[1747320511270,0.003,101610.0,101600.0,1.17478266]
[1747320511493,0.3303625,101610.0,101600.0,1.19446663]
[1747320514944,0.52419479,101610.0,101600.0,1.1902344]
[1747320515169,0.02952279,101610.0,101600.0,1.20991875]
[1747320515401,0.03936405,101610.0,101600.0,1.2197602]
[1747320515602,0.02952279,101610.0,101600.0,1.22663543]
[1747320515796,0.03936414,101610.0,101600.0,1.22663543]
[1747320516001,0.02952279,101610.0,101600.0,1.22663543]
[1747320516201,0.23619516,101610.0,101600.0,0.83925234]
[1747320516456,0.23619516,101610.0,101600.0,1.22663543]
[1747320517062,0.23619516,101610.0,101600.0,1.19710943]
[1747320517266,0.23619594,101610.0,101600.0,1.17742489]
[1747320517467,0.21651382,101610.0,101600.0,0.81521968]
[1747320517872,0.21651382,101610.0,101600.0,0.80834445]
[1747320518271,0.21651382,101610.0,101600.0,1.19572754]
[1747320519048,0.21651382,101610.0,101600.0,1.40242025]
[1747320519262,0.51467382,101610.0,101600.0,1.47546247]
[1747320519470,0.32768299,101610.0,101600.0,1.49514634]
[1747320519677,0.31784203,101610.0,101600.0,2.18584634]
[1747320519878,0.5243285,101620.0,101610.0,0.21651402]
[1747320520079,0.51448831,101620.0,101610.0,0.70120651]
[1747320520289,0.51448831,101620.0,101610.0,1.11036156]
[1747320520504,0.51492831,101620.0,101610.0,1.12020291]
[1747320520706,0.51492831,101620.0,101610.0,1.18340291]
[1747320520898,0.51492831,101620.0,101610.0,1.19324407]
[1747320521025,0.51492831,101620.0,101610.0,0.77424786]
[1747320521219,0.50608783,101620.0,101610.0,1.18340291]
[1747320521822,0.50808783,101620.0,101610.0,1.18340291]
[1747320522166,0.50808783,101620.0,101610.0,0.77424786]
[1747320522368,0.50700783,101620.0,101610.0,0.77424786]
[1747320522575,0.50700783,101620.0,101610.0,0.78112118]
[1747320523091,0.003,101620.0,101610.0,1.20995845]
[1747320523289,0.3089599,101620.0,101610.0,1.59734086]
[1747320523663,0.003,101620.0,101610.0,1.59734086]
[1747320523856,0.01283971,101620.0,101610.0,1.59734086]
[1747320524094,0.002,101620.0,101610.0,1.28549521]
[1747320524466,0.002,101620.0,101610.0,2.40103606]
[1747320524672,0.0295168,101630.0,101620.0,0.28843222]
[1747320524897,0.0295168,101630.0,101620.0,0.77999801]
[1747320525216,0.0295168,101630.0,101620.0,1.61441801]
[1747320525652,0.00983874,101630.0,101620.0,1.61441801]
[1747320525860,0.00998371,101630.0,101620.0,1.61441801]
[1747320526062,0.0099838,101630.0,101620.0,1.61441801]
[1747320526269,0.00998371,101630.0,101620.0,1.61441801]
[1747320526476,0.00214497,101630.0,101620.0,1.71172741]
[1747320526677,0.00214497,101630.0,101620.0,1.30242741]
[1747320526898,0.00214497,101630.0,101620.0,2.05172741]
[1747320527072,0.00214497,101630.0,101620.0,1.64242741]
[1747320527304,0.00214497,101630.0,101620.0,2.05172741]
[1747320527604,0.00014497,101630.0,101620.0,2.05172741]
[1747320527824,0.00114497,101630.0,101620.0,1.65696826]
[1747320528034,0.00014497,101630.0,101620.0,2.75696826]
[1747320528206,0.00014497,101630.0,101620.0,3.09696826]
[1747320528858,0.00014497,101630.0,101620.0,3.09896826]
[1747320529074,0.00014497,101630.0,101620.0,2.00096826]
[1747320529276,0.00014497,101630.0,101620.0,2.41026826]
[1747320530702,0.00014497,101630.0,101620.0,2.42026826]
[1747320531113,1e-08,101630.0,101620.0,2.80765135]
[1747320531378,0.20664113,101690.0,101650.0,0.01454085]
[1747320531530,0.23603283,101680.0,101670.0,0.21636662]
[1747320531741,0.2458676,101680.0,101670.0,0.48469249]
[1747320531955,0.21636541,101680.0,101670.0,0.10418272]
[1747320532164,0.33594023,101680.0,101670.0,0.39702272]
[1747320532360,0.34499251,101680.0,101670.0,0.0973094]
[1747320532659,0.2065504,101670.0,101660.0,0.71784]
[1747320532866,0.38177555,101670.0,101660.0,0.71784]
[1747320533049,0.41387555,101670.0,101660.0,0.71784]
[1747320533266,0.39082492,101670.0,101660.0,0.425]
[1747320533478,0.39082492,101670.0,101660.0,0.71784]
[1747320533678,0.39082492,101670.0,101660.0,0.8151494]
[1747320534459,0.31290917,101670.0,101660.0,0.8151494]
[1747320534842,0.3038598,101670.0,101660.0,0.8151494]
[1747320535026,0.3038598,101670.0,101660.0,0.8161494]
[1747320536326,0.50374585,101670.0,101660.0,0.8161494]
[1747320537011,0.50374585,101670.0,101660.0,1.02272022]
[1747320537214,0.50374585,101670.0,101660.0,1.08672022]
[1747320537419,0.21638585,101670.0,101660.0,0.8161494]
[1747320537628,0.50306585,101670.0,101660.0,0.8161494]
[1747320538422,0.50230585,101670.0,101660.0,0.8161494]
[1747320539776,0.50230585,101670.0,101660.0,0.8061494]
[1747320541447,0.21638585,101670.0,101660.0,0.8061494]
[1747320541656,0.49990585,101670.0,101660.0,0.8061494]
[1747320541876,0.49990585,101670.0,101660.0,0.5133094]
[1747320542117,0.99871525,101670.0,101660.0,0.7008]
[1747320542332,1.00775529,101670.0,101660.0,0.7008]
[1747320543648,1.00775529,101670.0,101660.0,0.2858]
[1747320543854,0.94625529,101670.0,101660.0,0.2858]
[1747320544085,0.50874551,101670.0,101660.0,0.96871491]
[1747320544317,0.50874551,101670.0,101660.0,1.05248726]
[1747320544318,0.31203007,101670.0,101660.0,1.05248726]
[1747320544509,0.32186532,101670.0,101660.0,1.05248726]
[1747320544721,0.31282528,101670.0,101660.0,1.05248726]
[1747320545124,0.32266073,101670.0,101660.0,1.0593596]
[1747320545436,0.32266073,101670.0,101660.0,1.07439529]
[1747320545642,0.31282528,101670.0,101660.0,0.6870122]
[1747320545888,0.51937636,101670.0,101660.0,0.67717617]
[1747320546086,0.5292121,101670.0,101660.0,1.48369548]
[1747320546311,0.5292121,101670.0,101660.0,1.10614852]
[1747320546464,0.51937636,101670.0,101660.0,1.10614852]
[1747320546655,0.51937636,101670.0,101660.0,1.49353161]
[1747320546853,0.01967041,101670.0,101660.0,1.50336764]
[1747320547063,0.30095041,101670.0,101660.0,1.50336764]
[1747320547475,0.31078586,101670.0,101660.0,1.50336764]
[1747320547681,0.51733626,101670.0,101660.0,1.4964953]
[1747320547877,0.52717113,101670.0,101660.0,1.09927618]
[1747320548213,0.51733684,101670.0,101660.0,1.10615102]
[1747320548423,0.51733684,101670.0,101660.0,1.09635499]
[1747320548850,0.50750149,101670.0,101660.0,1.08651867]
[1747320549057,0.50750149,101670.0,101660.0,0.87011153]
[1747320549288,0.49766604,101670.0,101660.0,0.80601153]
[1747320549498,0.4878305,101670.0,101660.0,0.79097584]
[1747320549706,0.4878305,101670.0,101660.0,0.41721474]
[1747320549915,0.4878305,101670.0,101660.0,0.70197474]
[1747320550385,0.4878305,101670.0,101660.0,0.41721474]
[1747320550630,0.5851399,101670.0,101660.0,0.6951]
[1747320550834,0.59418829,101670.0,101660.0,0.6951]
[1747320551046,0.59418829,101670.0,101660.0,0.7924094]
[1747320552123,0.59418829,101670.0,101660.0,0.3831094]
[1747320552333,0.59418829,101670.0,101660.0,0.2858]
[1747320552745,0.65918829,101670.0,101660.0,0.2858]